Workbook

Sheet Ref.Tariff
A1: Monthly detail | B1: Annualised | C1: 2018-07-31 | D1: =EOMONTH(C1,1) -> 2018-08-31 | E1: 2018-09-30 | F1: 2018-10-31 | G1: 2018-11-30 | H1: 2018-12-31 | I1: 2019-01-31 | J1: 2019-02-28 | K1: 2019-03-31 | L1: 2019-04-30 | M1: 2019-05-31 | N1: 2019-06-30 | O1: Total FY19 | Q1: ART changes | R1: Mtpa | S1: Notes
Q2: Initial ART | R2: =B20 -> 76300000
A3: ARR/ Revenue Cap | B3: =B19 -> 199563464.4 | C3: =$B$3/12 -> 16630288.7 | D3: 16630288.7 | E3: 16630288.7 | F3: 16630288.7 | G3: 16630288.7 | H3: 16630288.7 | I3: 16630288.7 | J3: 16630288.7 | K3: 16630288.7 | L3: 16630288.7 | M3: 16630288.7 | N3: 16630288.7 | O3: =SUM(C3:N3) -> 199563464.4 | Q3: Change in ART | R3: 600000 | S3: Previously approved
A4: ART: | Q4: Amended ART: Aug-18 to Oct-18 | R4: =SUM(R2:R3) -> 76900000 | S4: Previously approved by QCA
A5: =Q2 -> Initial ART | B5: =R2 -> 76300000 | C5: =$B5/12 -> 6358333.333 | D5: 6358333.333 | E5: 6358333.333 | F5: 6358333.333 | G5: 6358333.333 | H5: 6358333.333 | I5: 6358333.333 | J5: 6358333.333 | K5: 6358333.333 | L5: 6358333.333 | M5: 6358333.333 | N5: 6358333.333 | O5: =SUM(C5:N5) -> 76300000 | Q5: Change in reference tonnage 1 | R5: 4320000 | S5: Multiple users contracted from 1 Jul-18
A6: =Q3 -> Change in ART | B6: =R3 -> 600000 | C6: 0 | D6: =$B$6/11 -> 54545.45455 | E6: =$B$6/11 -> 54545.45455 | F6: =$B$6/11 -> 54545.45455 | G6: 0 | H6: 0 | I6: 0 | J6: 0 | K6: 0 | L6: 0 | M6: 0 | N6: 0 | O6: 163636.3636 | Q6: Amended ART: Nov-18 to Dec-18 | R6: =R2+R5 -> 80620000
A7: =Q4 -> Amended ART: Aug-18 to Oct-18 | B7: =SUM(B5:B6) -> 76900000 | C7: 6358333.333 | D7: 6412878.788 | E7: 6412878.788 | F7: 6412878.788 | G7: 6358333.333 | H7: 6358333.333 | I7: 6358333.333 | J7: 6358333.333 | K7: 6358333.333 | L7: 6358333.333 | M7: 6358333.333 | N7: 6358333.333 | O7: 76463636.36 | Q7: Change in reference tonnage 2 | R7: 500000 | S7: User agreement start 1 Jan-19
A8: Change in reference tonnage 1 | B8: =R5 -> 4320000 | C8: 0 | D8: 0 | E8: 0 | F8: 0 | G8: =$B8/COUNT($G$1:$N$1) -> 540000 | H8: =$B8/COUNT($G$1:$N$1) -> 540000 | I8: 540000 | J8: 540000 | K8: 540000 | L8: 540000 | M8: 540000 | N8: 540000 | O8: 4320000 | P8: =O8-B8 -> 0 | Q8: Change in reference tonnage 3 | R8: -2700000 | S8: User agreement reducing from 1 Jan-19
A9: Amended ART: Nov-18 to Dec-18 | B9: =B5+B8 -> 80620000 | C9: =SUM(C7:C8) -> 6358333.333 | D9: 6412878.788 | E9: 6412878.788 | F9: 6412878.788 | G9: 6898333.333 | H9: 6898333.333 | I9: 6898333.333 | J9: 6898333.333 | K9: 6898333.333 | L9: 6898333.333 | M9: 6898333.333 | N9: 6898333.333 | O9: 80783636.36 | Q9: Amended ART: Jan-19 to Jun-19 | R9: =SUM(R6:R8) -> 78420000
A10: Change in reference tonnage 2 | B10: =R7 -> 500000 | C10: 0 | D10: 0 | E10: 0 | F10: 0 | G10: 0 | H10: 0 | I10: =$B$10/12 -> 41666.66667 | J10: 41666.66667 | K10: 41666.66667 | L10: 41666.66667 | M10: 41666.66667 | N10: 41666.66667 | O10: 250000 | R10: =R5+(SUM(R7:R8)*6/12)+D21 -> 3383636.364
A11: Change in reference tonnage 3 | B11: =R8 -> -2700000 | C11: 0 | D11: 0 | E11: 0 | F11: 0 | G11: 0 | H11: 0 | I11: =$B$11/12 -> -225000 | J11: -225000 | K11: -225000 | L11: -225000 | M11: -225000 | N11: -225000 | O11: -1350000 | R11: =R10-SUM(O6,O8,O10:O11) -> 0
A12: Amended ART: Jan-19 to Jun-19 | B12: =SUM(B9:B11) -> 78420000 | C12: 6358333.333 | D12: 6412878.788 | E12: 6412878.788 | F12: 6412878.788 | G12: 6898333.333 | H12: 6898333.333 | I12: 6715000 | J12: 6715000 | K12: 6715000 | L12: 6715000 | M12: 6715000 | N12: 6715000 | O12: 79683636.36
A13: Reference Tariff | C13: =C3/C12 -> 2.615510674 | D13: =D3/D12 -> 2.593264157 | E13: 2.593264157 | F13: 2.593264157 | G13: 2.41076908 | H13: 2.41076908 | I13: 2.476588042 | J13: 2.476588042 | K13: 2.476588042 | L13: 2.476588042 | M13: 2.476588042 | N13: 2.476588042 | O13: 2.504447256 | P13: Effective rate
A14: Annualised Reference Tonnes | C14: =C12*12 -> 76300000 | D14: =D12*12 -> 76954545.45 | E14: 76954545.45 | F14: 76954545.45 | G14: 82780000 | H14: 82780000 | I14: 80580000 | J14: 80580000 | K14: 80580000 | L14: 80580000 | M14: 80580000 | N14: 80580000
K15: Legend:
L16: : Change in reference tonnage
C17: Approved | D17: Approved | E17: Proposed | F17: Proposed | L17: : Actuals
A18: Reference Tariff Component | B18: Approved | C18: Jul-18 only | D18: Aug-18 to Oct-18 | E18: Nov-18 to Dec-18 | F18: Jan-19 to Jun-19 | G18: Effective 2018-19
A19: ARR/Revenue Cap ($) | B19: 199563464.4 | C19: =B19/12 -> 16630288.7 | D19: =(B19-C19)/11*3 -> 49890866.1 | E19: =(B19-C19-D19)/8*2 -> 33260577.4 | F19: =B19-SUM(C19:E19) -> 99781732.21 | G19: =SUM(C19:F19) -> 199563464.4
A20: ART (t) | B20: 76300000 | C20: =B20/12 -> 6358333.333 | D20: =(B20-C20)/11*3 -> 19075000 | E20: =(B20-C20-D20)/8*2 -> 12716666.67 | F20: =B20-SUM(C20:E20) -> 38150000 | G20: =SUM(C20:F20) -> 76300000
A21: Change in ART (t) | B21: No change | C21: 0 | D21: =O6 -> 163636.3636 | E21: =$R$5/8*2 -> 1080000 | F21: =($R$5/8*6)+(SUM($R$7:$R$8)/12*6) -> 2140000 | G21: =SUM(C21:F21) -> 3383636.364 | H21: =G21-R10 -> 0
A22: Amended ART (t) | B22: No change | C22: =C20+C21 -> 6358333.333 | D22: 19238636.36 | E22: 13796666.67 | F22: 40290000 | G22: =G20+G21 -> 79683636.36
A23: Reference Tariff ($/t) | B23: =B19/B20 -> 2.615510674 | C23: =C19/C22 -> 2.615510674 | D23: =D19/D22 -> 2.593264157 | E23: =E19/E22 -> 2.41076908 | F23: 2.476588042 | G23: =G19/G22 -> 2.504447256
A25: Check to monthly detail | C25: =C23-C13 -> 0 | D25: =D23-AVERAGE(D13:E13) -> 0 | E25: =E23-AVERAGE(G13:H13) -> 0 | F25: =F23-AVERAGE(I13:N13) -> 0 | G25: =G23-O13 -> 0
